bitfinex/quotes_ETHUSD_20241204
["timestamp","ask_amount","ask_price","bid_price","bid_amount"]
[1733286124271,0.40715359,3677.2,3676.7,2.71982]
[1733286124480,0.66160735,3677.1,3676.8,2.71973]
[1733286124641,0.25445376,3677.0,3676.8,2.71973]
[1733286124842,0.40710653,3677.3,3676.8,2.71973]
[1733286125056,0.25444114,3677.2,3676.8,2.71973]
[1733286125261,0.25444114,3677.1,3676.5,0.03065538]
[1733286125464,0.25444114,3677.0,3676.9,2.71963]
[1733286125667,0.25444114,3677.0,3676.9,2.75028205]
[1733286125838,0.1603833,3677.4,3676.9,2.75028205]
[1733286126177,0.66149159,3677.3,3676.9,2.75028205]
[1733286126376,0.25441984,3677.2,3676.9,2.75028205]
[1733286126677,0.25441984,3677.1,3676.9,2.75028205]
[1733286126838,0.4070327,3677.3,3676.9,0.03065205]
[1733286127045,0.25439553,3677.2,3676.9,0.03065205]
[1733286127275,0.1603833,3677.4,3676.9,0.03065205]
[1733286127276,0.25439553,3677.1,3676.9,0.03065205]
[1733286127460,0.25439553,3677.0,3676.9,0.03065205]
[1733286127841,0.1603833,3677.4,3676.9,0.03065205]
[1733286128149,0.66142805,3677.3,3676.9,0.03065205]
[1733286128358,0.2543954,3677.2,3676.9,0.03065205]
[1733286128681,0.2543954,3677.1,3676.9,0.03065205]
[1733286128897,0.58635943,3677.4,3676.9,0.03065205]
[1733286129173,0.66146787,3677.3,3676.9,0.03065205]
[1733286129347,0.25441072,3677.2,3676.9,0.03065205]
[1733286129554,0.25441072,3677.1,3676.9,0.03065205]
[1733286129874,0.58635943,3677.4,3676.9,0.03065205]
[1733286129875,0.25441072,3677.0,3676.9,0.03065205]
[1733286130192,0.40706695,3677.3,3676.9,0.03065205]
[1733286130476,0.25441684,3677.2,3676.9,0.03065205]
[1733286130661,0.25441684,3677.1,3676.9,0.03065205]
[1733286130880,0.25441684,3677.0,3676.9,0.03065205]
[1733286131182,0.40708382,3677.3,3676.9,2.75031205]
[1733286131394,0.58635943,3677.4,3676.9,2.75031205]
[1733286131679,0.25443291,3677.3,3676.9,2.75031205]
[1733286131840,0.25443291,3677.2,3676.9,2.75031205]
[1733286132043,0.25443291,3677.1,3676.9,2.75031205]
[1733286132245,0.58635943,3677.4,3676.9,2.75031205]
[1733286132441,0.25442584,3677.3,3676.9,2.75031205]
[1733286132665,0.25442584,3677.2,3676.9,2.75031205]
[1733286132843,0.25442584,3677.1,3676.9,2.75031205]
[1733286133055,0.58635943,3677.4,3676.9,2.75031205]
[1733286133387,0.25442847,3677.3,3676.9,2.75031205]
[1733286133582,0.25442847,3677.2,3676.9,2.75031205]
[1733286133756,0.25442847,3677.1,3676.9,2.75031205]
[1733286134083,0.58635943,3677.4,3676.9,2.75031205]
[1733286134084,0.58635943,3677.4,3676.9,0.30568326]
[1733286134247,0.25441953,3677.3,3677.2,2.71943]
[1733286134447,0.25441953,3677.3,3677.0,0.03065121]
[1733286134648,0.1603833,3677.4,3677.0,3.02228121]
[1733286135080,0.1603833,3677.4,3677.1,3.25021877]
[1733286135257,0.1603833,3677.4,3677.3,2.71938]
[1733286136106,0.1603833,3677.4,3677.3,2.74657317]
[1733286136390,0.1603833,3677.4,3677.3,6.01867317]
[1733286136571,0.1603833,3677.4,3677.3,5.99148]
[1733286136772,0.1603833,3677.4,3677.3,6.02212871]
[1733286136947,0.1603833,3677.4,3677.3,7.24470642]
[1733286137949,0.66086705,3678.7,3678.2,2.71871]
[1733286138289,0.25408481,3678.6,3678.2,2.71871]
[1733286138452,0.25408481,3678.5,3678.2,2.71871]
[1733286138652,0.40678224,3678.9,3678.3,0.55642615]
[1733286138852,0.25393442,3678.8,3678.3,0.55642615]
[1733286139087,0.25393442,3678.7,3678.3,0.55642615]
[1733286139397,0.25382414,3678.6,3678.3,0.55642615]
[1733286139547,0.25382414,3678.5,3678.3,0.55642615]
[1733286139755,0.40611863,3679.1,3678.3,0.55642615]
[1733286140070,0.6599494,3679.0,3678.3,0.55642615]
[1733286140278,0.40093571,3678.9,3678.3,0.55642615]
[1733286140476,0.25383077,3678.8,3678.3,0.55642615]
[1733286140654,0.25383077,3678.7,3678.3,0.55642615]
[1733286140990,0.14710494,3678.9,3678.3,0.55642615]
[1733286141295,0.25372231,3678.8,3678.3,0.55642615]
[1733286141478,0.25372231,3678.7,3678.2,0.54750243]
[1733286141678,0.25372231,3678.6,3678.2,0.54750243]
[1733286141861,0.25372231,3678.8,3678.2,0.54750243]
[1733286142056,0.25372231,3678.7,3678.2,0.54750243]
[1733286142279,0.25372231,3678.8,3678.2,0.54750243]
[1733286143551,0.25372231,3678.7,3678.2,0.54750243]
[1733286143747,0.25372231,3678.8,3678.2,0.54750243]
[1733286144150,0.25372231,3679.1,3678.2,0.54750243]
[1733286144390,0.25372231,3679.0,3678.2,0.54750243]
[1733286144561,0.25372231,3679.1,3678.2,0.54750243]
[1733286144759,0.25372231,3679.0,3678.4,2.71852]
[1733286144947,0.8111,3679.2,3678.5,2.71847]
[1733286144948,0.25372231,3678.9,3678.5,2.71847]
[1733286145151,0.0091146,3679.7,3678.5,2.71847]
[1733286145152,0.25372231,3679.1,3678.5,2.71847]
[1733286145346,0.25372231,3679.0,3678.5,2.71847]
[1733286145599,0.25372231,3679.3,3678.6,2.71841]
[1733286145767,0.25372231,3679.2,3678.6,2.71841]
[1733286146089,0.25372231,3679.1,3678.8,3.26254132]
[1733286146396,0.0091146,3679.7,3678.8,3.26254132]
[1733286146701,0.25339719,3679.6,3678.8,3.26254132]
[1733286146991,0.25339719,3679.5,3679.1,2.71805]
[1733286147167,0.25339719,3679.6,3679.1,2.71805]
[1733286147361,0.26251179,3679.7,3678.8,3.26254132]
[1733286147567,0.26251179,3679.7,3678.8,1.19775955]
[1733286148605,0.26251179,3679.7,3678.8,3.91601955]
[1733286149880,0.0091146,3679.7,3678.8,3.91601955]
[1733286150907,0.0091146,3679.7,3678.8,3.91599955]
[1733286151401,0.26241449,3679.7,3678.8,3.91599955]
[1733286151606,0.26241449,3679.7,3678.9,3.07021882]
[1733286151762,0.0091146,3679.7,3678.9,3.07021882]
[1733286152196,0.26241449,3679.7,3678.9,0.35204882]
[1733286152866,0.26241449,3679.7,3678.8,0.54432132]
[1733286153069,2.71783,3679.4,3678.8,0.54432132]
[1733286153377,0.7928,3679.3,3678.0,0.03064288]
[1733286153562,2.71818,3679.0,3678.0,0.03064288]
[1733286153901,0.7928,3678.9,3678.1,0.55601945]
[1733286154106,1.143898,3678.9,3678.1,0.55601945]
[1733286154408,1.3972445,3678.9,3678.1,0.55601945]
[1733286154605,1.3972445,3678.9,3678.0,0.03064288]
[1733286154606,4.1154545,3678.9,3678.0,0.03064288]
[1733286154768,0.2533465,3678.8,3678.0,0.03064288]
[1733286155163,0.2533465,3678.7,3678.0,0.03064288]
[1733286155369,0.2533465,3678.8,3678.0,0.03064288]
[1733286155878,0.2533465,3678.8,3678.1,0.55368026]
[1733286156088,0.2533465,3678.7,3678.1,0.55368026]
[1733286156524,0.7928,3678.9,3678.1,0.55368026]
[1733286156886,0.25350949,3678.8,3678.1,0.55368026]
[1733286157274,0.7928,3678.9,3678.1,0.55368026]
[1733286157605,0.25354434,3678.8,3678.1,0.55368026]
[1733286157818,0.7928,3678.9,3678.1,0.55368026]
[1733286157991,0.60465431,3678.8,3678.1,0.55368026]
[1733286158193,0.7928,3678.9,3678.1,0.55368026]
[1733286159922,0.253685,3678.8,3678.1,0.55368026]
[1733286160103,0.7928,3678.9,3678.1,0.55368026]
[1733286160307,0.25377235,3678.8,3678.1,0.55368026]
[1733286160512,0.7928,3678.9,3678.1,0.55368026]
[1733286160704,0.2537731,3678.8,3678.1,0.55368026]
[1733286160907,1.18448173,3678.9,3678.1,0.55368026]
[1733286161107,0.25377301,3678.8,3678.1,0.55368026]
[1733286161427,0.39168173,3678.9,3678.1,0.55368026]
[1733286161625,0.25386329,3678.8,3678.1,0.55368026]
[1733286161810,0.39168173,3678.9,3678.1,0.55368026]
[1733286162017,0.60544292,3678.8,3678.1,0.55368026]
[1733286162206,0.25396713,3678.7,3678.1,0.55368026]
[1733286162405,0.35157891,3678.8,3678.1,0.55368026]
[1733286162605,0.25396749,3678.7,3678.1,0.55368026]
[1733286162789,0.35157891,3678.8,3678.1,0.55368026]
[1733286162984,0.25396767,3678.7,3678.1,0.55368026]
[1733286163231,0.8263,3678.6,3678.1,0.55368026]
[1733286163719,0.25410424,3678.5,3678.1,0.55368026]
[1733286163924,0.7724,3678.9,3678.1,0.55368026]
[1733286164121,0.64375306,3678.8,3678.1,0.55368026]
[1733286164321,0.25409933,3678.7,3678.1,0.55368026]
[1733286164506,0.25409933,3678.6,3678.1,0.55368026]
[1733286164717,0.7964351,3678.8,3678.1,0.55368026]
[1733286164891,0.25424194,3678.7,3678.1,0.55368026]
[1733286165228,0.25424194,3678.6,3678.1,0.55368026]
[1733286165525,0.25424194,3678.5,3678.1,0.55368026]
[1733286165700,0.7724,3678.9,3678.1,0.55368026]
[1733286165903,0.66134237,3678.8,3678.1,0.55368026]
[1733286166104,0.25436245,3678.7,3678.1,0.55368026]
[1733286166306,0.25436245,3678.6,3678.1,0.55368026]
[1733286166502,0.25436245,3678.5,3678.1,0.55368026]
[1733286166703,0.7724,3678.9,3678.1,0.55368026]
[1733286166931,1.01054425,3678.8,3678.1,0.55368026]
[1733286167229,0.25442202,3678.7,3678.1,0.55368026]
[1733286167419,0.25442202,3678.6,3678.1,0.55368026]
[1733286167593,0.25442202,3678.5,3678.1,0.55368026]
[1733286167903,0.40710802,3678.8,3678.1,0.55368026]
[1733286168090,0.25444036,3678.7,3678.1,0.55368026]
[1733286168290,0.25444036,3678.6,3678.1,0.55368026]
[1733286168510,0.25444036,3678.5,3678.1,0.55368026]
[1733286168724,0.7724,3678.9,3678.0,0.03064288]
[1733286168922,1.01061861,3678.8,3678.0,0.03064288]
[1733286169091,0.25445062,3678.7,3678.0,0.58430452]
[1733286169291,0.25445062,3678.6,3678.0,0.58430452]
[1733286169491,0.25445062,3678.5,3678.0,0.58430452]
[1733286169707,0.7724,3678.9,3678.0,0.58430452]
[1733286169931,0.66160736,3678.8,3678.0,0.58430452]
[1733286170130,0.25446437,3678.7,3678.0,0.58430452]
[1733286170297,0.25446437,3678.6,3678.0,0.58430452]
[1733286170631,0.25446437,3678.5,3678.0,0.91462697]
[1733286170926,0.40716731,3678.7,3678.0,0.91462697]
[1733286171125,0.25448,3678.6,3678.0,0.91462697]
[1733286171331,0.25448,3678.5,3678.0,0.91462697]
[1733286171529,0.40718654,3678.7,3678.0,0.58430452]
[1733286171831,0.25449186,3678.6,3678.0,0.58430452]
[1733286172032,0.25449186,3678.5,3678.0,0.58430452]
[1733286172334,0.40718688,3678.7,3678.0,0.58430452]
[1733286172500,0.25450723,3678.6,3678.0,0.58430452]
[1733286172701,0.25450723,3678.5,3678.0,0.58430452]
[1733286172915,0.25450723,3678.4,3678.0,0.58430452]
[1733286173105,0.7724,3678.9,3678.0,0.58430452]
[1733286173307,0.66174477,3678.8,3678.0,0.58430452]
[1733286173507,0.66174477,3678.7,3678.0,0.58430452]
[1733286173817,0.25451722,3678.6,3678.0,3.30316452]
[1733286174012,0.25451722,3678.5,3678.0,3.63348097]
[1733286174328,0.25451722,3678.4,3678.0,3.63348097]
[1733286174509,0.7724,3678.9,3678.0,3.51059384]
[1733286174714,2.71783,3679.4,3678.3,2.71864]
[1733286174715,0.25452212,3678.8,3678.3,2.71864]
[1733286175038,0.25452212,3678.7,3678.6,2.71842]
[1733286175229,1.09462606,3679.7,3678.5,2.59597287]
[1733286175401,0.66165497,3679.6,3678.5,2.59597287]
[1733286175601,0.66165497,3679.5,3678.5,2.59597287]
[1733286175839,0.66165497,3679.4,3678.8,2.71827]
[1733286176007,0.66165497,3679.3,3678.6,0.53145829]
[1733286176208,0.25448268,3679.2,3678.9,0.53695365]
[1733286176564,0.25448268,3679.1,3678.9,3.25515365]
[1733286176707,0.40711379,3679.5,3678.9,3.25515365]
[1733286176909,0.66155606,3679.4,3678.9,3.25515365]
[1733286177208,0.25444227,3679.3,3679.0,3.04361537]
[1733286177410,0.40707986,3679.6,3679.0,3.04361537]
[1733286177609,0.25441619,3679.5,3679.3,1.17077774]
[1733286177811,0.25441619,3679.4,3679.3,1.17077774]
[1733286178246,0.25442503,3679.4,3679.3,1.17077774]
[1733286178845,0.7937146,3679.7,3679.3,1.17077774]
[1733286179011,0.25437152,3679.6,3679.3,1.17077774]
[1733286179427,0.25437152,3679.5,3679.3,1.17077774]
[1733286179709,0.25437152,3679.4,3679.3,1.17077774]
[1733286180326,0.25437152,3679.4,3679.0,1.17077774]
[1733286180530,0.7937146,3679.7,3679.0,1.17077774]
[1733286180735,0.25434487,3679.6,3679.0,1.17077774]
[1733286181026,0.25434487,3679.5,3679.0,1.17077774]
[1733286181224,0.25434487,3679.4,3679.0,1.17077774]
[1733286181508,0.40691678,3679.6,3679.0,1.17077774]
[1733286181708,0.2543229,3679.5,3678.9,0.53695365]
[1733286181912,0.2543229,3679.4,3678.9,0.53695365]
[1733286182118,0.2543229,3679.3,3678.9,0.53695365]
[1733286182340,0.40689607,3679.6,3678.9,0.53695365]
[1733286182541,0.25430831,3679.5,3678.9,0.53695365]
[1733286182714,0.25430831,3679.4,3678.9,3.25515365]
[1733286182925,0.25430831,3679.3,3678.9,3.25515365]
[1733286183124,0.40689719,3679.6,3678.9,3.69774679]
[1733286183344,0.40689719,3679.6,3678.9,0.97954679]
[1733286183345,0.25427713,3679.5,3678.9,0.97954679]
[1733286183551,0.25427713,3679.4,3679.0,3.88888774]
[1733286183739,0.7937146,3679.7,3679.0,3.88888774]
[1733286183964,0.25427154,3679.6,3679.2,2.71797]
[1733286184116,0.0091146,3679.7,3679.2,2.71797]
[1733286184449,0.0091146,3679.7,3679.0,1.17077774]
[1733286184837,0.7821146,3679.7,3679.0,1.17077774]
[1733286185009,0.7821146,3679.7,3679.0,3.88889774]
[1733286185648,0.25414139,3679.6,3679.0,3.88889774]
[1733286185816,0.7821146,3679.7,3679.0,3.88889774]
[1733286186017,0.25414155,3679.6,3679.0,3.88889774]
[1733286186324,0.7821146,3679.7,3679.0,3.88889774]
[1733286186526,0.25411471,3679.6,3679.0,3.88889774]
[1733286186729,0.7821146,3679.7,3679.0,3.88889774]
[1733286188360,0.7821146,3679.7,3679.0,4.33148288]
[1733286188651,0.2540579,3679.6,3678.9,0.53695365]
[1733286188852,0.8001,3679.6,3678.9,0.53695365]
[1733286189070,0.25406782,3679.5,3678.9,0.53695365]
[1733286189219,0.25406782,3679.4,3678.9,0.53695365]
[1733286189417,0.8001,3679.6,3678.9,0.53695365]
[1733286189628,0.25406852,3679.5,3678.9,0.53695365]
[1733286189830,1.19343755,3679.6,3678.9,0.53695365]
[1733286190052,0.8001,3679.6,3678.9,0.53695365]
[1733286190254,0.8001,3679.6,3678.9,3.25512365]
[1733286190428,0.0091146,3679.7,3678.9,3.25512365]
[1733286191359,0.0091146,3679.7,3678.9,0.53695365]
[1733286191719,0.8258,3679.6,3678.9,0.53695365]
[1733286191921,0.8258,3679.3,3678.2,2.71867]
[1733286192119,0.25408697,3679.2,3678.2,2.99360129]
[1733286192441,0.25409089,3679.1,3678.6,0.55526695]
[1733286192660,0.8258,3679.3,3678.6,0.55526695]
[1733286193035,0.8258,3679.3,3678.3,2.71863]
[1733286193222,0.8258,3679.3,3678.5,0.55651804]
[1733286193422,1.180158,3679.3,3678.5,0.55651804]
[1733286193941,3.54373,3679.3,3678.1,3.88955774]
[1733286194359,0.25410602,3679.2,3678.1,3.88955774]
[1733286194562,0.8258,3679.3,3678.1,3.88955774]
[1733286194738,0.8258,3679.3,3678.3,0.54960984]
[1733286195053,0.354364,3679.2,3678.3,3.26824984]
[1733286195255,0.8258,3679.3,3678.4,2.71856]
[1733286195678,0.8258,3679.3,3678.4,3.88933774]
[1733286195966,0.8258,3679.3,3678.4,1.17077774]
[1733286196946,0.8258,3679.3,3678.5,0.02718438]
[1733286197136,0.7915,3679.5,3678.4,1.17077774]
[1733286197487,0.7915,3679.5,3678.8,2.71826]
[1733286197659,0.7915,3679.5,3678.7,1.17077774]
[1733286197838,0.7915,3679.5,3678.9,2.71819]
[1733286198177,8.74,3679.6,3678.9,2.71819]
[1733286198178,0.0091146,3679.7,3678.9,3.26821692]
[1733286199387,0.0091146,3679.7,3679.0,2.71811]
[1733286200552,0.0091146,3679.7,3678.9,0.55002692]
[1733286203099,0.0091146,3679.7,3678.9,3.26821692]
[1733286203243,0.0091146,3679.7,3678.9,3.71213139]
[1733286203644,0.0091146,3679.7,3678.9,3.12366739]
[1733286203938,0.0091146,3679.7,3679.2,2.71795]
[1733286204477,0.0091146,3679.7,3679.3,0.53787921]
[1733286205191,0.0091146,3679.7,3679.0,0.02718022]
[1733286205344,0.8234,3679.6,3678.4,1.17077774]
[1733286205544,0.8234,3679.6,3678.7,2.71834]
[1733286205985,0.8234,3679.6,3678.9,0.53445184]
[1733286206261,0.8234,3679.6,3678.7,2.71834]
[1733286206464,0.8234,3679.6,3678.4,3.88933774]
[1733286206669,3.54108,3679.6,3678.4,3.88933774]
[1733286206878,0.8081,3679.4,3678.5,2.71848]
[1733286207575,0.8081,3679.4,3678.7,0.5376616]
[1733286208177,0.8081,3679.4,3678.8,2.71827]
[1733286209680,0.8081,3679.4,3678.7,0.5376616]
[1733286210542,2.71783,3679.4,3678.7,0.5376616]
[1733286210743,1.104183,3679.3,3678.7,0.5376616]
[1733286212283,0.8324,3679.6,3678.8,1.17077774]
[1733286212458,0.8324,3679.6,3679.0,2.7181]
[1733286214707,0.8324,3679.6,3679.1,2.71804]
[1733286216162,0.8324,3679.6,3678.7,0.5376616]
[1733286217400,0.8324,3679.6,3678.9,2.71814]
[1733286218363,0.8324,3679.6,3678.9,3.16079793]
[1733286220922,0.8324,3679.6,3679.0,2.71811]
[1733286221082,0.8324,3679.6,3679.1,2.74476454]
[1733286221284,0.8324,3679.6,3679.1,2.71802]
[1733286221735,0.8324,3679.6,3678.9,0.44265793]
[1733286221935,0.8324,3679.6,3679.2,2.71798]
[1733286222645,0.8324,3679.6,3679.4,0.54014208]
[1733286225627,0.0091146,3679.7,3679.4,0.54014208]
[1733286225828,0.0091146,3679.7,3679.4,3.25797208]
[1733286226618,0.0091146,3679.7,3679.4,0.54014208]
[1733286227617,0.0091146,3679.7,3679.4,3.25794208]
[1733286227819,0.0091146,3679.7,3679.4,3.58373629]
[1733286228025,0.0091146,3679.7,3679.5,2.71774]
[1733286228648,0.0091146,3679.7,3679.6,2.71768]
[1733286231244,0.0091146,3679.7,3679.4,0.86593629]
[1733286231774,0.7954,3679.6,3679.4,0.54014208]
[1733286233675,0.0091146,3679.7,3679.4,0.54014208]
[1733286233839,0.0091146,3679.7,3679.4,3.25797208]
[1733286234169,0.0091146,3679.7,3679.4,0.54014208]
[1733286239748,0.0091146,3679.7,3679.0,3.88889774]
[1733286239948,0.0091146,3679.7,3679.1,2.71803]
[1733286240148,0.0091146,3679.7,3679.3,0.53136338]
[1733286241548,0.0091146,3679.7,3679.3,3.24922338]
[1733286242189,0.0091146,3679.7,3679.3,0.53136338]
[1733286242886,0.0091146,3679.7,3679.3,3.24925338]
[1733286243260,0.0091146,3679.7,3679.3,0.53136338]
[1733286243474,0.0091146,3679.7,3679.4,2.7178]
[1733286245398,0.0091146,3679.7,3679.5,2.71772]
[1733286245574,0.0091146,3679.7,3679.4,2.71783]
[1733286245774,0.0091146,3679.7,3679.5,2.71773]
[1733286246271,0.0091146,3679.7,3679.3,0.53136338]
[1733286246470,0.0091146,3679.7,3679.3,3.24925338]
[1733286246686,0.0091146,3679.7,3679.3,0.53136338]
[1733286246891,0.7997,3679.6,3679.3,0.53136338]
[1733286248770,0.7997,3679.6,3679.3,0.53136338]
[1733286252425,0.7997,3679.6,3678.8,0.02674672]
[1733286252719,0.0091146,3679.7,3678.8,0.02674672]
[1733286252720,0.7912,3679.4,3678.8,0.02674672]
[1733286253127,0.7912,3679.4,3678.8,0.56640223]
[1733286253921,0.7912,3679.2,3678.8,0.02674672]
[1733286254686,0.66185173,3679.1,3678.8,0.02674672]
[1733286254922,0.66185173,3679.0,3678.8,0.02674672]
[1733286255091,0.25455836,3678.9,3678.8,0.02674672]
[1733286255525,0.7912,3679.2,3678.8,0.02674672]
[1733286255894,0.66172731,3679.1,3678.8,0.02674672]
[1733286256106,0.25451062,3679.0,3678.8,0.02674672]
[1733286256310,0.7912,3679.2,3678.8,0.02674672]
[1733286256311,0.25446538,3678.9,3678.8,0.02674672]
[1733286256702,0.25446491,3678.9,3678.8,0.02674672]
[1733286256909,0.7912,3679.2,3678.8,0.02674672]
[1733286257227,0.25446224,3679.1,3678.8,0.02674672]
[1733286257390,0.25446224,3679.0,3678.8,0.02674672]
[1733286257589,0.25446224,3678.9,3678.8,0.02674672]
[1733286257791,0.25446224,3678.9,3678.8,2.74501672]
[1733286258290,0.7912,3679.2,3678.8,2.74501672]
[1733286258514,0.25440742,3679.1,3678.8,2.74501672]
[1733286258713,0.25440742,3679.0,3678.8,2.74501672]
[1733286258917,0.7912,3679.2,3678.8,2.74501672]
[1733286259194,0.25437634,3679.1,3678.8,2.74501672]
[1733286259414,0.25437634,3679.0,3678.8,0.02674672]
[1733286259609,0.25437634,3678.9,3678.8,0.02674672]
[1733286260033,0.7912,3679.2,3678.8,0.02674672]
[1733286260242,0.25435946,3679.1,3678.8,0.02674672]
[1733286260423,0.25435946,3679.0,3678.8,0.02674672]
[1733286260750,0.25435946,3678.9,3678.8,0.02674672]
[1733286261253,1.05705946,3678.9,3678.8,0.02674672]
[1733286262356,1.05703456,3678.9,3678.8,0.02674672]
[1733286263084,1.46396106,3678.9,3678.8,0.02674672]
[1733286263222,1.22043408,3678.9,3678.8,0.02674672]
[1733286263421,1.05703456,3678.9,3678.8,0.02674672]
[1733286264527,1.46387825,3678.9,3678.8,0.02674672]
[1733286265261,4.35213212,3678.9,3678.8,0.02674672]
[1733286266738,4.77602305,3678.9,3678.8,0.02674672]
[1733286267354,4.77602305,3678.9,3677.1,2.71952]
[1733286267355,2.71867,3678.3,3677.1,2.71952]
[1733286267567,0.7851,3678.1,3677.2,0.38902977]
[1733286267886,0.25433456,3678.0,3677.7,0.55252977]
[1733286268047,0.25433456,3677.9,3677.1,2.71952]
[1733286268249,1.03943456,3677.8,3677.0,1.17077774]
[1733286268446,0.7851,3677.8,3676.7,2.71981]
[1733286268641,0.7851,3677.6,3677.2,0.53936264]
[1733286268954,0.25381967,3677.5,3676.7,2.71975]
[1733286269155,0.7851,3677.6,3677.0,0.53909059]
[1733286269651,0.25360904,3677.5,3677.0,0.53909059]
[1733286269854,0.7851,3677.6,3677.0,0.53909059]
[1733286270180,0.25360926,3677.5,3677.0,0.53909059]
[1733286270350,2.71877,3678.2,3677.0,0.53909059]
[1733286270351,0.7713,3678.2,3677.0,0.53909059]
[1733286270551,0.65899553,3678.1,3677.3,2.71938]
[1733286270756,0.25345982,3678.0,3677.3,2.71938]
[1733286271059,0.7713,3678.2,3677.8,2.71901]
[1733286271380,0.7713,3678.2,3677.1,0.19083588]
[1733286271381,0.7758,3678.6,3678.0,0.54355218]
[1733286271553,0.25343943,3678.5,3677.6,3.88992774]
[1733286271766,0.7758,3678.6,3677.6,2.71915]
[1733286271946,0.60286837,3678.5,3677.6,2.71915]
[1733286272281,0.25346137,3678.4,3677.6,2.71915]
[1733286272448,0.349407,3678.5,3677.6,2.71915]
[1733286272651,0.25343719,3678.4,3677.9,0.55311528]
[1733286272957,0.7758,3678.6,3677.9,0.55311528]
[1733286273158,0.25344139,3678.5,3677.9,0.55311528]
[1733286273372,0.25344139,3678.4,3677.9,0.55311528]
[1733286273557,0.14347476,3678.5,3677.9,0.55311528]
[1733286273882,0.25344539,3678.4,3677.9,0.55311528]
[1733286274082,0.14347476,3678.5,3677.9,0.55311528]
[1733286274289,0.25345336,3678.4,3677.9,0.55311528]
[1733286274511,0.14347476,3678.5,3677.9,0.55311528]
[1733286274709,0.25346811,3678.4,3677.9,0.55311528]
[1733286274915,0.25346811,3678.3,3677.9,0.55311528]
[1733286275207,0.14347476,3678.5,3677.9,0.55311528]
[1733286275405,0.25348957,3678.4,3677.9,0.55311528]
[1733286275626,0.8176,3678.2,3677.4,2.71925]
[1733286275786,0.8176,3678.2,3677.5,2.991145]
[1733286275987,0.8176,3678.2,3677.1,0.19083588]
[1733286276283,0.8176,3678.2,3677.3,2.71938]
[1733286276519,0.8176,3678.2,3677.3,2.71933]
[1733286276819,0.8176,3678.2,3677.5,0.53939898]
[1733286277025,0.2534919,3678.1,3677.5,0.53939898]
[1733286277320,0.8176,3678.2,3677.5,0.53939898]
[1733286277623,0.25350414,3678.1,3677.5,0.53939898]
[1733286277833,1.08610414,3678.0,3677.1,2.73936905]
[1733286278012,0.8326,3678.0,3677.1,2.73936905]
[1733286278219,0.25347037,3677.9,3677.3,0.54564549]
[1733286278420,0.8326,3678.0,3677.3,0.54564549]
[1733286278751,0.25348037,3677.9,3677.3,0.54564549]
[1733286278911,0.8326,3678.0,3677.3,0.54564549]
[1733286279109,0.25348872,3677.9,3677.3,0.54564549]
[1733286279417,0.8326,3678.0,3677.3,0.54564549]
[1733286279619,0.25349085,3677.9,3677.3,0.54564549]
[1733286279935,1.26206213,3678.0,3677.3,0.54564549]
[1733286281907,0.7975,3677.9,3677.3,0.54564549]
[1733286284439,0.25378851,3677.8,3677.3,0.54564549]
[1733286284627,0.7975,3677.9,3676.9,2.71967]
[1733286284834,0.2537906,3677.8,3676.9,2.71967]
[1733286285021,0.7736,3677.7,3677.2,0.53488333]
[1733286287231,0.7736,3677.7,3676.4,0.2718]
[1733286287572,0.40617916,3678.0,3676.0,0.01985499]
[1733286287573,0.8292,3677.2,3676.0,0.01985499]
[1733286287858,0.8292,3677.0,3676.0,2.74016499]
[1733286288925,0.8292,3677.0,3676.1,3.25382902]
[1733286289540,0.8292,3677.0,3676.2,2.7202]
[1733286289752,0.8292,3677.0,3676.1,3.25377902]
[1733286289936,1.22968985,3677.4,3676.2,0.58704472]
[1733286290139,0.8236,3677.4,3676.9,2.71967]
[1733286290676,0.8236,3677.4,3676.4,2.72005]
[1733286290677,0.8236,3677.4,3676.4,2.72001]
[1733286290963,0.25389542,3677.3,3676.5,0.5439548]
[1733286291165,0.7918,3677.2,3676.5,0.0517308]
[1733286292943,0.7918,3677.2,3676.3,2.72005]
[1733286293129,0.7918,3677.2,3676.1,2.72026]
[1733286293757,0.797,3677.0,3676.1,2.72026]
[1733286293956,0.797,3677.0,3676.5,0.55647327]
[1733286294336,0.797,3676.8,3675.8,0.2718]
[1733286294667,0.797,3676.8,3675.9,2.7204]
[1733286295367,0.797,3676.8,3676.0,2.74019499]
[1733286295774,0.797,3676.8,3676.1,0.55195202]
[1733286296244,0.797,3676.8,3676.2,2.72018]
[1733286296441,0.797,3676.8,3676.1,0.55195202]
[1733286296642,0.7618,3677.4,3676.1,0.55195202]
[1733286296952,0.25424778,3677.3,3676.7,2.7198]
[1733286297155,0.7618,3677.4,3676.7,2.7198]
[1733286297368,0.25425307,3677.3,3676.7,2.7198]
[1733286297530,0.7618,3677.4,3676.5,2.71997]
[1733286297734,0.7618,3677.4,3676.7,2.71982]
[1733286298047,0.25430197,3677.3,3676.7,2.71982]
[1733286298238,0.7618,3677.4,3676.7,2.71982]
[1733286298438,0.25429669,3677.3,3676.7,2.71982]
[1733286298636,0.7618,3677.4,3676.7,2.71982]
[1733286298857,0.2542967,3677.3,3676.7,2.71982]
[1733286299058,0.7618,3677.4,3676.7,2.71982]
[1733286299258,0.25429738,3677.3,3676.7,2.71982]
[1733286299471,0.7618,3677.4,3676.7,2.71982]
[1733286299968,0.25420641,3677.3,3676.4,2.71998]
[1733286300167,0.7618,3677.4,3676.5,2.71997]
[1733286300367,0.25419303,3677.3,3676.5,2.71997]
[1733286300578,0.7517,3677.2,3676.5,2.71997]
[1733286301939,0.7517,3677.2,3676.5,2.71996]
[1733286302370,0.7517,3677.2,3676.8,2.71974]
[1733286302875,0.7517,3677.2,3676.4,0.02719693]
[1733286303174,0.7517,3677.2,3676.2,0.58889702]
[1733286303175,0.7517,3677.2,3676.8,2.71973]
[1733286303681,0.7517,3677.2,3676.9,2.71967]
[1733286306072,0.7587,3677.9,3676.8,0.02719514]
[1733286306280,0.66146546,3677.8,3677.4,2.71929]
[1733286306438,0.7587,3677.9,3676.8,0.32831277]
[1733286306439,0.25440979,3677.7,3677.0,0.02719192]
[1733286306638,0.7587,3677.9,3677.4,2.71926]
[1733286306837,0.25444064,3677.8,3677.4,2.71926]
[1733286307078,0.25444064,3677.7,3677.0,0.02719173]
[1733286307282,0.7587,3677.9,3677.5,2.7192]
[1733286307573,0.25445643,3677.8,3676.8,0.32831277]
[1733286307877,0.25445643,3677.7,3677.2,2.71942]
[1733286308041,0.7587,3677.9,3677.4,0.55549658]
[1733286308262,0.25447166,3677.8,3677.4,0.55549658]
[1733286308498,0.7587,3677.9,3677.4,0.55549658]
[1733286308714,0.25446004,3677.8,3677.4,0.55549658]
[1733286308858,0.25446004,3677.7,3677.4,0.55549658]
[1733286309062,0.7587,3677.9,3677.4,0.55549658]
[1733286309328,0.7587,3677.7,3676.5,2.71994]